bitfinex/quotes_ETHUSD_20260120
["timestamp","ask_amount","ask_price","bid_price","bid_amount"]
[1768917937179,0.0016,3089.0,3088.3,3.23802739]
[1768917938408,0.0016,3089.0,3088.3,6.47605478]
[1768917939515,0.0016,3089.0,3088.3,3.23802739]
[1768917942215,0.0016,3089.0,3088.2,6.92670479]
[1768917942818,0.0016,3089.0,3088.2,10.16481633]
[1768917943226,0.0016,3089.0,3088.2,13.40294857]
[1768917943924,0.0016,3089.0,3088.2,10.16481633]
[1768917944504,0.0016,3089.0,3088.2,13.40294857]
[1768917946024,0.0016,3089.0,3088.5,0.002]
[1768917946223,0.001,3088.7,3088.5,0.002]
[1768917946413,0.0016,3089.0,3088.5,0.002]
[1768917948200,0.0016,3089.0,3088.5,0.53]
[1768917950336,0.0016,3089.0,3088.5,0.9068001]
[1768917950744,0.0016,3089.0,3088.5,4.14460226]
[1768917951336,0.0016,3089.0,3088.5,0.9068001]
[1768917951933,0.0016,3089.0,3088.5,4.14456784]
[1768917952310,0.0016,3089.0,3088.5,0.9068001]
[1768917952644,0.0016,3089.0,3088.6,0.41446684]
[1768917954238,0.82893368,3088.6,3087.4,0.002]
[1768917954517,6.92670479,3088.1,3087.4,0.002]
[1768917954718,1.26927939,3088.0,3087.4,0.002]
[1768917955204,1.00199579,3088.1,3087.4,0.002]
[1768917956146,6.47563542,3088.5,3087.4,0.002]
[1768917956348,3.047515,3088.6,3087.4,0.002]
[1768917956514,1.41969831,3088.5,3087.4,0.002]
[1768917957647,3.23792254,3088.4,3087.4,0.002]
[1768917959954,3.23792254,3088.4,3087.7,0.002]
[1768917960567,1.41969831,3088.5,3087.7,6.92870479]
[1768917960857,0.001,3088.7,3087.7,6.92870479]
[1768917962828,0.001,3088.7,3087.7,13.40598395]
[1768917963046,0.0016,3089.0,3088.0,6.92670479]
[1768917963245,0.0016,3089.0,3088.1,0.528]
[1768917964076,0.0016,3089.0,3088.2,3.23813224]
[1768917964445,0.0016,3089.0,3088.1,3.23821714]
[1768917964757,0.0016,3089.0,3088.3,0.528]
[1768917967379,0.0016,3089.0,3088.3,3.23801933]
[1768917967580,0.0016,3089.0,3088.4,0.528]
[1768917970685,0.0016,3089.0,3088.1,3.23819999]
[1768917970874,0.0016,3089.0,3088.2,0.528]
[1768917971073,0.0016,3089.0,3088.3,0.528]
[1768917972550,0.0016,3089.0,3088.6,0.002]
[1768917972951,0.001,3088.7,3088.6,0.002]
[1768917982198,0.0016,3089.0,3088.6,0.002]
[1768917983380,0.0016,3089.0,3088.7,0.528]
[1768917988398,0.0016,3089.0,3088.6,0.002]
[1768917988706,0.0016,3089.0,3088.7,0.528]
[1768917990175,0.0016,3089.0,3088.8,0.528]
[1768917991906,0.0016,3089.0,3088.7,0.528]
[1768917995327,0.0016,3089.0,3088.6,0.002]
[1768917995519,0.0016,3089.0,3088.7,0.528]
[1768918000210,0.0016,3089.0,3088.6,0.002]
[1768918000434,0.0016,3089.0,3088.6,0.53]
[1768918003536,0.0016,3089.0,3088.6,0.002]
[1768918003959,0.0016,3089.0,3088.3,0.002]
[1768918004261,6.92514438,3088.9,3087.7,0.002]
[1768918004422,6.92514438,3088.9,3087.9,0.528]
[1768918004826,6.47500646,3088.8,3087.9,0.528]
[1768918005855,3.23750323,3088.8,3087.9,0.528]
[1768918006437,6.47500646,3088.8,3087.9,0.528]
[1768918006638,1.34001508,3088.7,3087.9,0.528]
[1768918007357,3.23771287,3088.6,3087.7,0.002]
[1768918007529,13.40057012,3088.6,3087.8,0.529]
[1768918007730,13.40057012,3088.6,3087.7,0.002]
[1768918007731,6.92514438,3088.3,3087.7,0.002]
[1768918007925,6.92514438,3088.3,3087.4,0.002]
[1768918008134,6.92514438,3088.0,3087.0,0.53]
[1768918009465,3.23844684,3087.9,3087.0,0.53]
[1768918009863,6.47689368,3087.9,3087.3,0.002]
[1768918010033,6.47689368,3087.9,3087.0,0.002]
[1768918010034,6.92514438,3087.7,3087.0,0.002]
[1768918010238,0.69251444,3087.6,3087.0,0.002]
[1768918010446,0.69251444,3087.6,3086.7,0.002]
[1768918011178,3.23844684,3087.9,3086.8,6.92514438]
[1768918011349,3.2382371,3088.1,3086.7,0.002]
[1768918012778,6.4764742,3088.1,3086.7,0.002]
[1768918014761,6.92514438,3087.3,3086.4,0.002]
[1768918015069,0.69251444,3087.2,3086.4,0.002]
[1768918015653,0.527,3087.5,3086.4,0.002]
[1768918016672,6.92514438,3087.3,3086.4,0.002]
[1768918016872,6.4779426,3087.4,3086.4,0.002]
[1768918017073,3.2389713,3087.4,3086.4,0.002]
[1768918017376,0.527,3087.5,3086.4,0.002]
[1768918017680,3.7658667,3087.5,3086.4,0.002]
[1768918018463,7.0047334,3087.5,3086.4,0.002]
[1768918018684,3.7658667,3087.5,3086.4,0.002]
[1768918019156,0.527,3087.5,3086.4,0.002]
[1768918019781,0.528,3088.0,3086.5,0.528]
[1768918020690,6.47689368,3087.9,3086.5,0.528]
[1768918020869,0.70048937,3087.8,3086.5,3.76788988]
[1768918021793,3.75522439,3088.6,3086.5,10.2477214]
[1768918021794,0.527,3088.5,3086.5,10.2477214]
[1768918022082,0.527,3088.5,3086.7,0.002]
[1768918022276,0.001,3087.8,3086.7,0.002]
[1768918022782,0.001,3087.8,3086.7,9.72111749]
[1768918022983,0.001,3087.8,3086.7,6.48141166]
[1768918023282,0.001,3087.8,3086.8,0.528]
[1768918023484,0.001,3087.8,3086.7,0.002]
[1768918023674,0.001,3087.8,3086.7,0.53]
[1768918024191,0.001,3087.8,3086.7,0.002]
[1768918028356,8.19632,3087.7,3086.7,0.002]
[1768918028679,0.872432,3087.6,3086.7,0.002]
[1768918028987,17.577803,3087.6,3086.7,0.002]
[1768918029162,3.23886639,3087.5,3086.7,0.002]
[1768918029778,6.47773278,3087.5,3086.7,0.002]
[1768918031374,5.636601,3087.6,3086.7,0.002]
[1768918032965,3.76662868,3087.8,3086.7,0.002]
[1768918032966,3.23956514,3087.8,3086.7,0.002]
[1768918033183,3.56352165,3087.8,3086.7,0.002]
[1768918033386,6.80208679,3087.8,3086.7,0.002]
[1768918033888,3.56352165,3087.8,3086.7,0.002]
[1768918034089,0.001,3087.5,3086.7,0.002]
[1768918043937,6.93258745,3087.4,3086.7,0.002]
[1768918044142,0.69335875,3087.3,3086.7,0.002]
[1768918045227,0.001,3087.5,3086.7,0.002]
[1768918045942,13.40769523,3088.3,3086.7,0.002]
[1768918047147,10.16961241,3088.3,3086.7,0.002]
[1768918048822,13.40769523,3088.3,3086.7,0.002]
[1768918049345,6.93258745,3088.0,3086.7,0.002]
[1768918049552,6.93258745,3087.7,3086.7,0.002]
[1768918049856,10.17129726,3087.7,3086.7,0.002]
[1768918051248,13.41000707,3087.7,3086.7,0.002]
[1768918051632,13.41000707,3087.7,3086.7,0.53]
[1768918052324,6.93358745,3088.7,3086.8,6.93258745]
[1768918052635,2.186281,3088.3,3086.9,0.03239495]
[1768918053043,6.93258745,3088.4,3086.9,0.03239495]
[1768918053044,6.79928924,3088.6,3086.9,0.03239495]
[1768918053260,0.527,3088.5,3086.9,0.03239495]
[1768918054464,3.23792254,3088.4,3087.0,3.23939099]
[1768918054683,6.93258745,3087.7,3086.7,0.002]
[1768918054844,6.93258745,3087.7,3086.8,0.528]
[1768918055470,7.45958745,3088.0,3086.8,0.528]
[1768918056360,7.45958745,3088.0,3086.8,3.7675785]
[1768918056557,3.76536623,3088.0,3086.9,3.23949318]
[1768918057442,3.76536623,3088.0,3086.8,3.76755418]
[1768918057952,7.00373246,3088.0,3086.8,0.528]
[1768918058137,0.70037325,3087.9,3086.8,0.528]
[1768918058338,0.001,3087.7,3086.9,0.528]
[1768918063060,0.001,3087.7,3086.8,0.528]
[1768918063884,0.001,3087.7,3086.7,0.002]
[1768918064090,0.527,3087.6,3086.7,0.002]
[1768918065155,9.71659917,3087.5,3086.7,0.002]
[1768918065354,1.02435992,3087.4,3086.4,0.002]
[1768918067456,6.47815242,3087.3,3086.4,0.002]
[1768918070889,6.47815242,3087.3,3086.7,0.002]
[1768918071103,6.47815242,3087.3,3086.4,0.002]
[1768918071870,0.528,3087.2,3086.4,0.002]
[1768918072086,0.70061524,3087.1,3086.4,0.002]
[1768918073894,3.93995916,3087.1,3086.4,0.002]
[1768918077298,24.964975,3087.0,3086.1,0.002]
[1768918077485,10.41858914,3087.1,3086.0,0.002]
[1768918077486,0.0008,3086.7,3086.0,0.002]
[1768918080202,0.37684537,3086.6,3086.0,0.002]
[1768918081702,3.6167399,3086.6,3086.0,0.002]
[1768918081904,0.37684537,3086.6,3086.0,0.002]
[1768918082404,3.61667938,3086.6,3086.0,0.002]
[1768918082605,3.61667938,3086.6,3086.3,0.002]
[1768918082902,0.68572618,3086.5,3086.0,0.002]
[1768918083313,6.85648897,3086.6,3086.0,0.002]
[1768918083692,6.85648897,3086.6,3085.4,0.53]
[1768918083898,3.61666717,3086.6,3085.4,0.53]
[1768918084298,6.85648897,3086.6,3085.4,0.53]
[1768918084686,6.85648897,3086.6,3085.4,0.002]
[1768918084687,6.93685644,3086.5,3085.4,0.002]
[1768918084898,1.37933454,3086.4,3085.4,0.53]
[1768918085613,1.37933454,3086.4,3085.4,3.24306986]
[1768918085796,1.37933454,3086.4,3085.4,3.77106986]
[1768918086902,1.37933454,3086.4,3085.4,0.002]
[1768918087201,1.37933454,3086.4,3085.5,0.528]
[1768918089017,0.37684537,3086.6,3085.5,3.76892664]
[1768918089613,3.61666104,3086.6,3085.5,3.76892664]
[1768918089813,3.61666104,3086.6,3085.5,0.528]
[1768918091419,0.37684537,3086.6,3085.5,3.76895368]
[1768918092211,3.6166668,3086.6,3085.5,3.76895368]
[1768918093926,3.6166668,3086.6,3085.5,0.528]
[1768918094510,6.85648823,3086.6,3085.5,0.528]
[1768918094824,0.68572882,3086.5,3085.5,0.528]
[1768918095022,0.68572882,3086.5,3085.4,0.002]
[1768918095198,0.68572882,3086.5,3086.0,0.002]
[1768918095398,0.68572882,3086.5,3085.5,0.528]
[1768918095597,0.001,3086.3,3085.5,0.528]
[1768918095821,0.001,3086.3,3085.4,0.002]
[1768918095999,0.001,3086.3,3085.6,0.002]
[1768918097338,0.48552589,3086.3,3085.6,0.002]
[1768918097646,0.37255466,3086.2,3085.6,0.002]
[1768918099437,0.001,3086.3,3085.6,0.002]
[1768918101439,6.93726216,3086.3,3085.6,0.002]
[1768918101846,6.93726216,3086.3,3085.4,0.002]
[1768918102075,6.93626216,3086.0,3085.4,0.002]
[1768918102216,10.17676641,3086.0,3085.4,0.002]
[1768918102412,1.01767664,3085.9,3085.4,0.002]
[1768918102613,1.01767664,3085.9,3085.1,0.002]
[1768918104248,3.24065072,3085.8,3085.1,0.002]
[1768918104657,6.93626216,3085.7,3085.1,0.002]
[1768918104861,6.93626216,3085.7,3084.7,0.002]
[1768918104862,6.93626216,3085.4,3084.7,0.002]
[1768918105162,0.69362622,3085.3,3084.7,0.002]
[1768918105654,0.528,3085.6,3084.7,0.002]
[1768918106359,3.24117589,3085.3,3084.6,0.0008]
[1768918106759,0.528,3085.2,3084.4,0.002]
[1768918107056,0.0008,3085.0,3084.4,0.002]
[1768918107258,0.0008,3085.0,3083.6,0.5288]
[1768918107438,0.69370622,3084.9,3083.7,3.24278567]
[1768918107636,0.69370622,3084.9,3083.6,0.0008]
[1768918107842,0.0008,3084.7,3083.6,0.0008]
[1768918108574,3.24260633,3084.7,3083.6,0.0008]
[1768918108774,0.0008,3084.7,3083.6,0.03322962]
[1768918109081,0.0008,3084.7,3084.6,0.002]
[1768918109284,0.0008,3084.7,3083.6,0.03322962]
[1768918110686,0.0008,3084.7,3083.7,3.2428576]
[1768918110877,0.0008,3084.7,3083.8,0.528]
[1768918112186,0.0008,3084.7,3083.7,3.2428576]
[1768918112352,0.0008,3084.7,3083.6,3.24372418]
[1768918112557,0.0008,3084.7,3083.7,0.528]
[1768918112756,0.0008,3084.7,3083.7,3.77081269]
[1768918112986,0.0008,3084.7,3083.6,3.77174946]
[1768918113485,0.0008,3084.7,3083.7,3.24285285]
[1768918113685,0.69370622,3084.6,3083.7,3.24282032]
[1768918114269,0.0008,3084.7,3083.7,3.24282032]
[1768918114605,0.0008,3084.7,3083.6,3.24374142]
[1768918114889,7.46506216,3084.7,3083.6,0.0008]
[1768918115061,7.46506216,3084.7,3083.6,0.03322962]
[1768918115257,0.0008,3084.7,3083.6,0.0008]
[1768918115464,0.528,3084.6,3083.6,0.0008]
[1768918117396,3.24201653,3084.5,3083.6,0.0008]
[1768918117686,0.37700165,3084.4,3083.6,0.0008]
[1768918120765,0.528,3084.6,3083.6,0.0008]
[1768918120977,0.528,3084.6,3083.9,0.002]
[1768918121302,3.24203721,3084.5,3083.9,0.002]
[1768918123172,0.528,3084.6,3083.9,0.002]
[1768918123806,3.76992235,3084.6,3083.9,0.002]
[1768918124009,4.63689746,3084.5,3083.9,0.002]
[1768918124211,1.39487951,3084.5,3083.9,0.002]
[1768918126083,4.63689875,3084.5,3083.9,0.002]
[1768918126479,1.39487951,3084.5,3083.9,0.002]
[1768918126909,4.63689985,3084.5,3083.9,0.002]
[1768918127118,0.51648999,3084.4,3083.9,0.002]
[1768918128310,1.39487951,3084.5,3083.9,0.002]
[1768918128519,0.5288,3084.7,3083.9,0.002]
[1768918129019,3.7706113,3084.7,3083.9,0.002]
[1768918130091,0.5288,3084.7,3083.9,0.002]
[1768918130628,3.77061037,3084.7,3083.9,0.002]
[1768918131321,0.5288,3084.7,3083.9,0.002]
[1768918131527,0.37705497,3084.6,3083.9,0.002]
[1768918132095,0.5288,3084.7,3083.9,0.002]
[1768918132096,0.0008,3084.7,3083.9,0.002]
[1768918139339,6.93706216,3084.7,3083.9,0.002]
[1768918139505,6.93626216,3084.4,3083.6,0.0008]
[1768918140722,7.40116616,3084.7,3083.6,0.0008]
[1768918140908,6.93706216,3084.7,3083.6,0.0008]
[1768918141109,0.69370622,3084.6,3083.6,0.0008]
[1768918141331,0.69370622,3084.6,3083.6,0.03322962]
[1768918141528,0.69370622,3084.6,3083.6,3.27616402]
[1768918141728,3.77067018,3084.7,3083.6,0.03322962]
[1768918142134,3.77067018,3084.7,3083.6,0.0008]
[1768918143854,0.5288,3084.7,3083.6,0.0008]
[1768918144751,0.5288,3084.7,3083.9,0.002]
[1768918145149,0.5288,3084.7,3083.9,0.03442647]
[1768918145344,0.37705426,3084.6,3083.9,0.002]
[1768918146356,3.61897098,3084.6,3083.9,0.002]
[1768918147359,0.37705426,3084.6,3083.9,0.002]
[1768918147557,0.37705426,3084.6,3083.9,0.03442647]
[1768918147747,0.37705426,3084.6,3083.9,0.002]
[1768918147945,0.0008,3084.7,3083.9,0.002]
[1768918148150,0.0008,3084.7,3083.9,0.01022575]
[1768918148339,0.0008,3084.7,3083.9,0.002]
[1768918148538,0.0008,3084.7,3083.9,0.03442647]
[1768918148739,0.0008,3084.7,3083.9,0.002]
[1768918148936,0.32425323,3084.6,3083.9,0.002]
[1768918149750,0.0008,3084.7,3083.9,0.002]
[1768918155831,0.0008,3084.7,3083.9,0.03442647]
[1768918156043,0.0008,3084.7,3083.9,0.002]
[1768918156457,0.001,3084.4,3083.9,0.002]
[1768918156660,0.001,3084.4,3083.9,0.03442647]
[1768918156844,0.001,3084.4,3084.0,0.528]
[1768918157659,0.001,3084.4,3083.9,0.002]
[1768918157842,0.001,3084.4,3084.1,0.528]
[1768918162503,0.001,3084.4,3084.1,3.77042922]
[1768918163301,0.001,3084.4,3084.1,0.528]
[1768918163598,0.001,3084.4,3084.1,3.77041493]
[1768918164196,0.0008,3084.7,3084.1,7.01285194]
[1768918165861,0.0008,3084.7,3084.2,0.00956784]
[1768918166364,0.0008,3084.7,3084.2,0.03242331]
[1768918167386,0.0008,3084.7,3084.3,3.24222676]
[1768918167556,0.0008,3084.7,3084.3,6.48445352]
[1768918167758,0.0008,3084.7,3084.4,0.03242121]
[1768918168612,0.0008,3085.0,3084.3,3.24222676]
[1768918168818,0.0008,3085.0,3084.2,3.24228287]
[1768918169286,0.0008,3085.0,3083.9,3.802]
[1768918169486,0.0008,3085.0,3084.0,0.03242542]
[1768918169733,0.0008,3085.0,3083.9,7.04462395]
[1768918170925,0.0008,3085.0,3083.9,10.28727124]
[1768918171713,0.0008,3085.0,3083.9,7.04462395]
[1768918172224,0.0008,3085.0,3083.9,10.28727124]
[1768918172521,0.0008,3085.0,3084.0,0.03242542]
[1768918173602,0.0008,3085.0,3083.9,6.48727124]
[1768918176842,0.0008,3085.0,3084.0,0.03242542]
[1768918179240,0.0008,3085.0,3084.1,6.48487402]
[1768918179441,0.0008,3085.0,3084.2,0.528]
[1768918180040,0.0008,3085.0,3084.3,0.002]
[1768918180344,0.001,3084.7,3084.3,0.03442226]
[1768918180837,0.0008,3085.0,3084.3,0.03442226]
[1768918181444,0.0008,3085.0,3084.4,6.48424328]
[1768918183343,0.0008,3085.0,3084.4,3.24212164]
[1768918183576,0.0008,3085.0,3084.3,3.24420506]
[1768918183882,0.0008,3085.0,3084.4,0.528]
[1768918186237,0.0008,3085.0,3084.4,3.77010471]
[1768918186776,0.0008,3085.0,3084.4,3.77011746]
[1768918187642,0.0008,3085.0,3084.4,0.528]
[1768918188347,0.0008,3085.0,3084.4,3.77011438]
[1768918189058,0.0008,3085.0,3084.4,7.01223602]
[1768918189757,0.001,3085.7,3084.4,17.19938263]
[1768918190092,0.001,3085.7,3084.5,0.03242016]
[1768918192998,0.001,3085.7,3084.7,6.94502497]
[1768918193212,0.001,3085.7,3084.8,0.56041701]
[1768918195365,0.001,3085.7,3084.9,6.48319232]
[1768918195676,0.001,3085.7,3085.0,0.03241491]
[1768918196203,0.001,3085.7,3085.1,0.528]
[1768918197327,0.001,3085.7,3085.1,3.76937192]
[1768918199810,0.001,3085.7,3085.1,7.01075793]
[1768918200016,0.001,3085.7,3085.2,0.0324128]
[1768918200187,0.001,3085.7,3085.1,7.01075793]
[1768918204352,0.001,3085.7,3085.1,6.48275793]
[1768918204551,0.001,3085.7,3085.2,0.528]
[1768918205240,0.001,3085.4,3085.3,3.24117589]
[1768918205441,0.001,3085.7,3085.3,3.24117589]
[1768918209355,0.001,3085.7,3085.2,3.2412386]
[1768918209560,0.001,3085.7,3085.2,3.7692386]
[1768918212957,0.001,3085.7,3085.2,7.01051955]
[1768918213159,0.001,3086.3,3085.2,7.01051955]
[1768918214844,0.001,3086.3,3085.2,3.7692386]
[1768918215932,0.001,3086.3,3085.2,7.01051955]
[1768918217468,0.001,3086.0,3085.2,7.01051955]
[1768918220164,0.001,3086.0,3085.2,3.7692386]
[1768918220468,0.001,3086.0,3085.2,7.01051955]
[1768918221274,0.001,3086.0,3085.2,3.7692386]
[1768918222154,0.001,3086.0,3084.8,0.002]
[1768918222370,0.001,3086.0,3084.9,0.528]
[1768918222561,0.48285922,3086.0,3084.9,0.528]
[1768918223166,13.90071959,3085.9,3084.8,0.002]
[1768918223367,1.48427403,3085.8,3084.8,0.002]
[1768918223867,6.93776897,3085.6,3084.8,0.002]
[1768918224066,6.93776897,3085.3,3084.5,0.002]
[1768918224266,30.0,3085.2,3084.5,0.002]
[1768918224753,30.0,3085.2,3084.3,0.002]
[1768918224959,3.22076751,3085.1,3084.3,0.002]
[1768918225160,0.001,3086.0,3085.6,29.948142]
[1768918225339,10.578001,3087.4,3085.7,36.92742397]
[1768918225535,10.578001,3087.4,3085.7,2.26705173]
[1768918225739,9.956166,3087.1,3085.5,0.0419597]
[1768918225961,1.6893935,3087.0,3085.8,20.026025]
[1768918226266,0.528,3086.9,3085.8,20.026025]
[1768918226572,3.76756581,3086.9,3085.8,20.026025]
[1768918226952,7.00713162,3086.9,3085.8,20.026025]
[1768918227147,3.76756581,3086.9,3085.8,20.026025]
[1768918227349,0.70069722,3086.8,3085.8,20.026025]
[1768918227549,0.70069722,3086.8,3085.5,0.0419597]
[1768918227550,6.93776897,3086.6,3085.5,0.0419597]
[1768918228640,3.23991576,3086.5,3085.5,0.0419597]
[1768918229761,6.47983152,3086.5,3085.5,0.0419597]
[1768918230866,3.23991576,3086.5,3085.5,0.0419597]
[1768918231165,1.34185125,3086.4,3085.5,0.0419597]
[1768918231471,0.528,3086.3,3085.5,0.0419597]
[1768918231874,0.0419597,3085.4,3083.9,0.002]
[1768918232101,0.0419597,3085.4,3083.4,0.002]
[1768918232102,6.93776897,3084.4,3083.4,0.002]
[1768918232384,0.528,3084.3,3083.4,3.24514116]
[1768918232944,0.528,3084.3,3083.4,0.002]
[1768918233340,6.4825619,3085.2,3083.4,0.002]
[1768918233546,0.528,3085.1,3083.4,0.002]
[1768918233783,2.032,3085.0,3083.4,0.002]
[1768918234915,3.76959616,3084.9,3083.4,0.002]
[1768918235117,0.701111,3084.8,3083.4,0.002]
[1768918236787,3.24144775,3085.1,3083.4,0.002]
[1768918236988,0.528,3085.0,3083.4,0.002]
[1768918237818,0.528,3084.9,3083.4,0.002]
[1768918239320,3.24170124,3084.8,3083.5,0.01063699]
[1768918239519,4.05097968,3084.8,3083.5,0.01063699]
[1768918239717,0.45789797,3084.7,3083.5,0.01063699]
[1768918240219,3.7696364,3084.9,3083.5,0.01063699]
[1768918241427,0.528,3084.9,3083.6,6.48872554]
[1768918241726,0.528,3084.9,3083.9,0.002]
[1768918242127,0.001,3084.7,3083.9,0.002]
[1768918251644,7.00582169,3084.9,3083.9,0.002]
[1768918251851,0.70058217,3084.8,3083.9,0.002]
[1768918252152,1.50986061,3084.8,3083.9,0.002]
[1768918253027,8.45623597,3084.8,3083.9,0.002]
[1768918253628,6.48361266,3084.7,3083.9,0.002]
[1768918254038,6.48461266,3084.7,3083.9,0.002]
[1768918254354,1.41315702,3084.6,3083.9,0.002]
[1768918256933,3.24201653,3084.5,3083.9,0.002]
[1768918257145,3.77001653,3084.5,3083.9,0.002]
[1768918257709,7.01203306,3084.5,3083.9,0.002]
[1768918257949,13.95840842,3084.5,3083.6,0.0028]
[1768918258154,1.53715654,3084.4,3083.6,0.0028]
[1768918259438,3.77010073,3084.5,3083.6,0.0028]
[1768918260234,0.001,3084.7,3083.6,0.0028]
[1768918260544,0.528,3084.6,3083.6,0.0028]
[1768918261266,3.24201653,3084.5,3083.6,0.0028]
[1768918263179,3.76996695,3084.6,3083.6,0.0028]
[1768918263478,1.2292814,3084.5,3083.6,0.0028]
[1768918263779,0.529,3084.4,3083.6,0.0028]
[1768918265648,0.529,3084.3,3083.6,0.0028]
[1768918266049,0.529,3084.3,3083.9,0.002]
[1768918267201,3.2428484,3084.7,3083.9,0.002]
[1768918267360,4.41938979,3084.6,3083.9,0.002]
[1768918267858,1.17745605,3084.6,3083.9,0.002]
[1768918268849,0.001,3084.7,3083.9,0.002]
[1768918269078,0.529,3084.6,3083.9,0.002]
[1768918273387,3.77092858,3084.6,3083.9,0.002]
[1768918274272,7.8221356,3084.6,3083.9,0.002]
[1768918274452,0.78231356,3084.5,3083.9,0.002]
[1768918276182,3.77092858,3084.6,3083.9,0.002]
[1768918276389,3.2421084,3084.5,3083.9,0.002]
[1768918276887,0.529,3084.6,3083.9,0.002]
[1768918276888,3.77096818,3084.6,3083.9,0.002]
[1768918278091,0.001,3084.3,3083.9,0.002]
[1768918278259,0.529,3084.2,3083.9,0.002]
[1768918278459,0.529,3084.1,3083.9,0.002]
[1768918278659,0.529,3084.0,3083.9,0.002]
[1768918281385,0.001,3084.3,3083.9,0.002]
[1768918281686,0.529,3084.2,3083.9,0.002]
[1768918283192,0.001,3084.3,3083.9,0.002]
[1768918283494,0.001,3084.7,3084.2,6.94532036]
[1768918283664,0.001,3084.7,3083.9,6.94732036]
[1768918284074,0.001,3084.7,3083.9,0.002]
[1768918285073,0.529,3084.6,3083.9,0.002]
[1768918285270,0.529,3084.5,3083.9,0.002]
[1768918287284,0.001,3084.7,3083.9,0.002]
[1768918287495,0.529,3084.4,3083.9,0.002]
[1768918287810,0.529,3084.5,3083.9,0.002]
[1768918288587,0.001,3084.7,3083.9,0.002]
[1768918288791,0.529,3084.6,3083.9,6.94732036]
[1768918289324,0.529,3084.6,3083.9,3.24459598]
[1768918289518,0.001,3084.2,3083.9,0.002]
[1768918289880,0.001,3084.2,3083.6,3.24571764]
[1768918290075,0.001,3084.2,3083.6,3.24574487]
[1768918290315,0.001,3084.2,3083.8,3.24274665]
[1768918290996,0.001,3084.2,3083.9,3.24264482]
[1768918291227,0.001,3084.2,3083.7,3.24277901]
[1768918292014,0.001,3084.2,3083.7,6.48563661]
[1768918297099,0.001,3084.2,3083.7,3.24277901]
[1768918297901,0.001,3084.2,3083.7,6.48563661]
[1768918300834,0.001,3084.7,3083.7,6.48563661]
[1768918301041,0.36596416,3084.7,3083.7,6.48563661]
[1768918301535,3.24145833,3085.1,3083.7,6.48563661]
[1768918301740,0.85214583,3085.0,3083.7,6.48563661]
[1768918301929,0.528,3085.0,3083.7,6.48563661]
[1768918303137,3.04186,3085.7,3083.9,6.94532036]
[1768918303339,2.528426,3085.6,3083.9,6.94532036]
[1768918303546,0.528,3085.6,3083.9,6.94532036]
[1768918303761,0.90487557,3085.5,3083.9,6.94532036]
[1768918303911,0.37687557,3085.5,3083.9,6.94532036]
[1768918304114,0.528,3085.4,3083.9,6.94532036]
[1768918304646,0.37687557,3085.5,3084.0,6.4850843]
[1768918304849,0.528,3085.3,3084.0,6.4850843]
[1768918305844,0.528,3085.2,3084.0,6.4850843]
[1768918306747,3.24204343,3086.0,3085.0,6.94532036]
[1768918306950,0.528,3085.9,3084.7,6.94532036]
[1768918307321,0.528,3085.9,3084.5,0.528]
[1768918307619,0.37700434,3085.8,3084.5,0.528]
[1768918308882,3.24075574,3085.7,3084.5,3.24196456]
[1768918310046,9.72226722,3085.7,3084.3,0.528]
[1768918310343,6.94532036,3085.5,3084.0,3.24248866]
[1768918310542,0.69453204,3085.4,3084.1,3.24243322]
[1768918310742,0.69453204,3085.4,3083.9,6.48528387]
[1768918310920,0.528,3085.3,3084.1,6.94532036]
[1768918311548,0.528,3085.3,3084.2,0.528]
[1768918312013,3.61767903,3085.8,3084.4,6.94532036]
[1768918312218,0.528,3085.7,3084.4,6.94532036]
[1768918313051,0.528,3085.7,3084.5,6.48403306]
[1768918313243,0.41457086,3085.6,3084.5,3.24201653]
[1768918313558,0.41457086,3085.6,3084.5,6.48403306]
[1768918313861,0.001,3085.4,3084.5,3.24201653]
[1768918314039,0.001,3085.4,3084.4,3.24207854]
[1768918315472,0.001,3085.4,3083.6,3.8028]
[1768918315760,0.001,3085.4,3083.8,0.528]
[1768918315961,0.001,3085.4,3083.8,7.47332036]
[1768918316523,0.001,3085.4,3084.0,3.24247531]
[1768918317162,0.001,3085.4,3083.8,10.71600112]
[1768918317465,0.001,3085.4,3083.8,3.77068076]
[1768918317661,1.3428252,3085.3,3083.8,3.77068076]
[1768918317961,1.3428252,3085.3,3083.8,7.0134332]
[1768918318755,0.528,3085.2,3083.8,7.0134332]
[1768918319745,3.76929555,3085.2,3083.8,7.0134332]
[1768918320673,0.528,3085.2,3083.8,7.0134332]
[1768918320833,0.51120518,3085.1,3083.8,7.0134332]
[1768918321034,0.528,3085.0,3083.8,13.95875356]
[1768918322777,0.51120518,3085.1,3083.8,13.95875356]
[1768918323075,0.528,3085.0,3083.8,13.95875356]
[1768918324167,0.528,3085.0,3083.8,17.201506]
[1768918324367,0.001,3085.4,3084.1,6.94532036]
[1768918324663,0.528,3085.3,3084.1,6.94532036]
[1768918325361,0.528,3085.3,3084.1,6.94732036]
[1768918325562,0.528,3085.3,3084.3,3.24222676]
[1768918325767,0.528,3085.3,3084.2,3.24228251]
[1768918326062,0.528,3085.3,3084.2,6.48461439]
[1768918328578,0.001,3085.4,3084.2,7.01261439]
[1768918328766,0.001,3085.4,3084.2,10.25494627]
[1768918329395,0.001,3085.4,3084.2,7.01261439]
[1768918331180,0.001,3085.4,3084.2,3.77028251]